bitfinex-derivatives/quotes_ETHF0:USTF0_20250704
["timestamp","ask_amount","ask_price","bid_price","bid_amount"]
[1751639233401,12.718,2516.6,2516.3,1.18348749]
[1751639233402,0.79452,2516.4,2516.3,1.18348749]
[1751639233903,0.79452,2516.4,2515.8,1.57786919]
[1751639233904,0.79468,2515.9,2515.8,1.57786919]
[1751639234109,0.79474,2515.7,2515.6,1.57786919]
[1751639235506,0.7948,2515.5,2515.4,1.57786919]
[1751639235709,0.79483,2515.4,2515.3,1.57786919]
[1751639236108,0.79487,2515.3,2515.2,4.78566919]
[1751639236306,0.79487,2515.3,2515.2,3.2078]
[1751639236910,0.7949,2515.2,2515.1,1.57786919]
[1751639237608,0.7949,2515.2,2515.1,2.37279919]
[1751639238706,1.3957,2515.4,2515.1,1.57786919]
[1751639238907,55.50466,2516.0,2515.3,1.57786919]
[1751639239114,3.2078,2516.3,2515.7,3.2078]
[1751639239410,5.19422,2516.3,2515.9,2.37253919]
[1751639239610,0.79464,2516.0,2515.9,2.37253919]
[1751639239809,0.79464,2516.1,2516.0,0.79464]
[1751639240007,0.79464,2516.0,2515.9,1.57786919]
[1751639240213,0.79464,2516.0,2515.9,2.37254919]
[1751639240412,0.79464,2516.0,2515.9,1.57786919]
[1751639240607,0.79468,2515.9,2515.8,1.57786919]
[1751639240812,0.79468,2515.9,2515.8,2.37257919]
[1751639241013,0.79468,2515.9,2515.8,0.79471]
[1751639241210,1.3262,2516.2,2515.7,6.29120379]
[1751639241414,0.79464,2516.0,2515.9,2.3724942]
[1751639241712,5.1942,2516.3,2515.8,3.16148379]
[1751639241713,0.79468,2515.9,2515.8,3.16148379]
[1751639241913,0.79468,2515.9,2515.8,0.79468]
[1751639242114,0.79467,2516.0,2515.9,0.79466]
[1751639242314,0.79468,2515.9,2515.8,3.16149379]
[1751639243017,0.79466,2516.0,2515.9,0.79465]
[1751639243312,0.79468,2515.9,2515.8,2.36680379]
[1751639243513,0.79468,2515.9,2515.8,1.57827669]
[1751639243716,5.19444,2516.0,2515.7,2.36680379]
[1751639243717,0.79472,2515.8,2515.7,2.36680379]
[1751639243911,0.79472,2515.8,2515.7,0.79474]
[1751639244220,0.79469,2516.0,2515.9,0.79466]
[1751639244415,0.79469,2516.0,2515.9,3.16249675]
[1751639244610,3.2078,2516.3,2516.2,0.79458]
[1751639245018,3.2078,2516.7,2516.2,0.79458]
[1751639245325,3.2078,2516.7,2516.6,2.37274732]
[1751639245729,12.72,2517.0,2516.9,0.79436]
[1751639246127,3.2078,2517.1,2517.0,0.79433]
[1751639246334,58.02924,2517.3,2517.2,0.79427]
[1751639246630,0.17833135,2517.4,2517.3,0.79423]
[1751639246819,0.97253135,2517.4,2517.3,0.79423]
[1751639247024,0.97253135,2517.4,2517.3,1.57774974]
[1751639247326,2.30003135,2517.4,2517.3,1.57774974]
[1751639248324,0.79423,2517.3,2517.2,1.57774974]
[1751639248630,0.79436,2516.9,2516.8,1.57774974]
[1751639248931,1.98575,2517.2,2516.7,1.57774974]
[1751639248932,0.79439,2516.8,2516.7,1.57774974]
[1751639249229,1.98551,2517.5,2516.6,3.2078]
[1751639249432,0.79435,2517.0,2516.9,1.57818101]
[1751639249927,5.79435,2517.0,2516.9,1.57818101]
[1751639250129,0.79439,2516.8,2516.6,5.57507152]
[1751639250431,0.79439,2516.8,2516.7,2.36727152]
[1751639250928,3.2078,2517.3,2516.8,0.79438]
[1751639251126,0.79433,2517.0,2516.9,1.57815447]
[1751639251326,4.5202,2517.3,2516.9,1.57815447]
[1751639251327,0.79427,2517.2,2516.9,4.78595447]
[1751639251527,0.79427,2517.2,2517.0,1.57815447]
[1751639251927,0.79427,2517.2,2517.1,0.7943]
[1751639252130,1.3124,2517.3,2517.0,0.79432]
[1751639252428,2.10663,2517.3,2517.2,2.36631378]
[1751639253219,0.79427,2517.2,2517.1,2.36631378]
[1751639254030,0.79427,2517.2,2517.1,3.16061378]
[1751639254233,0.79427,2517.2,2517.1,2.36631378]
[1751639254530,0.79426,2517.3,2517.1,3.16060378]
[1751639254835,0.79423,2517.3,2517.2,1.57677056]
[1751639255221,2.20973,2517.3,2517.2,1.57677056]
[1751639255828,0.79427,2517.2,2517.1,1.57677056]
[1751639256034,0.7943,2517.1,2517.0,1.57677056]
[1751639256234,0.79433,2517.0,2516.8,4.78457056]
[1751639256529,0.79436,2516.9,2516.8,1.57677056]
[1751639256926,0.79439,2516.8,2516.7,2.37118056]
[1751639257126,0.79439,2516.9,2516.7,2.36631378]
[1751639257326,0.79438,2516.9,2516.8,1.57653505]
[1751639257528,0.79436,2517.0,2516.8,2.37091505]
[1751639257728,0.79436,2516.9,2516.8,1.57653505]
[1751639258630,0.79439,2516.8,2516.7,1.57653505]
[1751639260338,0.79442,2516.7,2516.6,1.57653505]
[1751639260534,0.79446,2516.6,2516.5,1.57653505]
[1751639262239,0.79452,2516.4,2516.3,1.57653505]
[1751639262433,0.79455,2516.3,2516.2,1.57653505]
[1751639262734,0.79464,2516.0,2515.9,1.57653505]
[1751639263829,0.79467,2515.9,2515.8,1.57653505]
[1751639264034,0.79471,2515.8,2515.7,3.85861378]
[1751639264234,0.79471,2515.8,2515.7,5.98583378]
[1751639264434,0.79469,2515.9,2515.8,0.79469]
[1751639264634,0.79466,2516.0,2515.9,0.79466]
[1751639264936,0.79464,2516.1,2516.0,0.79464]
[1751639265135,0.7946,2516.2,2516.1,0.7946]
[1751639265337,0.79461,2516.1,2516.0,2.88878991]
[1751639265930,15.8608,2516.4,2516.0,2.88878991]
[1751639266137,0.79459,2516.2,2516.1,0.79459]
[1751639266330,12.653,2516.4,2516.1,0.79459]
[1751639266331,0.79456,2516.3,2516.2,0.79455]
[1751639266636,12.653,2516.4,2516.0,1.5781429]
[1751639266637,0.79461,2516.1,2516.0,1.5781429]
[1751639267437,0.79461,2516.1,2515.8,2.36631378]
[1751639267438,0.79467,2515.9,2515.8,2.36631378]
[1751639267839,0.79474,2515.7,2515.6,0.79475]
[1751639269138,1.98661,2516.0,2515.5,4.47269378]
[1751639269139,0.79477,2515.6,2515.5,4.47269378]
[1751639269340,0.79476,2515.7,2515.6,0.79475]
[1751639269840,0.79477,2515.6,2515.5,4.47270378]
[1751639270033,0.79476,2515.7,2515.6,0.79476]
[1751639270236,3.2078,2516.1,2515.5,3.67791378]
[1751639270434,17.84713,2516.4,2515.6,1.98693]
[1751639270636,0.79466,2516.0,2515.9,0.79465]
[1751639271036,0.79466,2516.0,2515.9,2.21955]
[1751639272035,0.79466,2516.0,2515.9,2.93825]
[1751639272432,0.79466,2516.0,2515.9,2.1436]
[1751639272638,0.79466,2516.0,2515.9,2.93827]
[1751639272843,15.8608,2516.4,2515.9,2.1436]
[1751639273139,0.7946,2516.2,2516.1,0.7946]
[1751639273339,0.79463,2516.1,2516.0,0.79462]
[1751639274532,0.7946,2516.2,2516.1,0.79459]
[1751639275240,0.7946,2516.2,2515.9,4.50991378]
[1751639275241,0.79464,2516.0,2515.9,2.36631378]
[1751639275440,1.381,2516.3,2516.0,0.79463]
[1751639275637,0.79459,2516.3,2515.9,2.36631378]
[1751639275839,0.79459,2516.2,2516.1,0.79459]
[1751639276845,0.79461,2516.1,2516.0,3.86414378]
[1751639277046,0.79461,2516.1,2516.0,0.7032]
[1751639277944,0.79467,2515.9,2515.8,3.16102378]
[1751639279146,0.79467,2515.9,2515.8,2.36631378]
[1751639279444,0.79467,2515.9,2515.8,6.36882378]
[1751639279839,0.79467,2516.0,2515.9,0.79465]
[1751639280243,0.79467,2515.9,2515.8,0.79469]
[1751639280440,1.98638,2516.3,2515.7,0.7279]
[1751639280646,3.2078,2516.1,2515.8,2.36919588]
[1751639280847,0.79466,2516.0,2515.9,3.16385588]
[1751639281147,0.79464,2516.1,2516.0,0.79464]
[1751639282336,0.79464,2516.1,2516.0,3.16383588]
[1751639282535,0.7946,2516.2,2516.0,2.36919588]
[1751639282740,3.2078,2516.4,2516.1,2.36919588]
[1751639283139,0.79458,2516.2,2516.1,2.36919588]
[1751639283346,0.7945,2516.5,2516.1,5.19431]
[1751639283542,0.79453,2516.4,2516.3,0.79453]
[1751639283747,3.28334,2516.6,2516.2,2.37095905]
[1751639284045,0.79454,2516.4,2516.3,0.79453]
[1751639284244,0.79451,2516.5,2516.4,0.7945]
[1751639284745,0.79452,2516.4,2516.3,3.16202399]
[1751639285045,0.79454,2516.4,2516.3,0.79453]
[1751639285246,0.7945,2516.5,2516.4,0.79448]
[1751639285443,0.79447,2516.6,2516.5,0.79445]
[1751639285748,14.57197,2516.9,2516.6,0.79442]
[1751639285749,0.79444,2516.7,2516.6,0.79442]
[1751639285949,0.79441,2516.8,2516.7,0.7944]
[1751639286150,13.38038,2516.9,2516.8,0.79439]
[1751639286744,13.38038,2516.9,2516.8,3.1677071]
[1751639287047,13.38038,2516.9,2516.8,2.3733171]
[1751639287947,0.79448,2516.5,2516.4,4.00229]
[1751639288145,0.79448,2516.5,2516.4,3.2078]
[1751639288341,0.79458,2516.2,2516.1,0.7013]
[1751639288547,0.79458,2516.2,2516.1,4.65940934]
[1751639288750,0.79458,2516.2,2516.1,0.7013]
[1751639289049,0.79461,2516.1,2516.0,9.54377308]
[1751639289249,0.79461,2516.1,2516.0,9.54379308]
[1751639289452,0.79461,2516.1,2516.0,4.00244]
[1751639289649,0.7946,2516.2,2516.1,0.79459]
[1751639289850,2.21984,2516.4,2516.3,0.79455]
[1751639290049,0.7945,2516.5,2516.4,0.79449]
[1751639290254,0.79442,2516.8,2516.7,0.79441]
[1751639290449,4.00218,2516.9,2516.8,0.79439]
[1751639290750,3.2078,2516.9,2516.8,0.79439]
[1751639290952,58.01134,2517.1,2517.0,0.79433]
[1751639291249,0.79428,2517.3,2517.2,0.79425]
[1751639291550,0.79428,2517.3,2517.2,3.16850923]
[1751639292052,0.79428,2517.3,2517.2,2.37425923]
[1751639292246,0.97256135,2517.4,2517.2,2.37425923]
[1751639292441,0.97256135,2517.4,2517.3,3.16848923]
[1751639292753,0.97256135,2517.4,2517.3,0.79423]
[1751639293050,0.79426,2517.2,2517.1,5.44722817]
[1751639293455,0.79426,2517.2,2517.1,2.27999]
[1751639293948,0.17833135,2517.4,2517.3,0.79423]
[1751639294153,0.17833135,2517.4,2517.3,3.96146817]
[1751639294352,0.17833135,2517.4,2517.3,0.79423]
[1751639294747,0.97253135,2517.4,2517.3,0.79423]
[1751639295148,0.19446728,2517.4,2517.3,0.79423]
[1751639295547,0.19446728,2517.4,2517.3,2.16323]
[1751639295853,0.19446728,2517.4,2517.3,5.33046817]
[1751639296454,0.98866728,2517.4,2517.3,0.79423]
[1751639296954,0.19446728,2517.4,2517.3,0.79423]
[1751639297154,0.19446728,2517.4,2517.3,2.16323]
[1751639298152,0.19446728,2517.4,2517.3,2.92083]
[1751639298548,0.19446728,2517.4,2517.3,1.55183]
[1751639299152,0.19446728,2517.4,2517.3,2.85823]
[1751639300260,0.19446728,2517.4,2517.3,6.02546817]
[1751639301360,0.19446728,2517.4,2517.3,2.85823]
[1751639302462,0.19446728,2517.4,2517.3,6.00755859]
[1751639302656,0.79416,2517.6,2517.5,0.79417]
[1751639302854,0.79416,2517.6,2517.5,4.00197]
[1751639303355,0.79416,2517.6,2517.5,3.2078]
[1751639303557,0.79416,2517.6,2517.5,3.15609851]
[1751639303758,0.79414,2517.6,2517.5,3.15608851]
[1751639304160,1.3905,2518.0,2517.6,0.79413]
[1751639304357,0.79404,2517.9,2517.8,1.18093996]
[1751639304764,0.79407,2517.8,2517.7,1.57458662]
[1751639305158,0.79411,2517.7,2517.6,1.57458662]
[1751639305359,0.79411,2517.7,2517.6,0.79414]
[1751639305867,0.79414,2517.6,2517.5,2.36193851]
[1751639307560,0.75414,2517.6,2517.5,2.36193851]
[1751639308065,0.75414,2517.6,2517.5,1.57495673]
[1751639308766,8.96194,2517.6,2517.5,1.57495673]
[1751639309062,0.79417,2517.5,2517.4,1.57495673]
[1751639309263,0.7942,2517.4,2517.3,2.36193851]
[1751639309465,1.5108,2517.4,2517.3,2.36193851]
[1751639309854,0.79423,2517.3,2517.2,2.36193851]
[1751639310062,2.18943,2517.3,2517.2,2.36193851]
[1751639310555,5.39723,2517.3,2517.2,2.36193851]
[1751639312360,6.58862,2517.3,2517.0,3.14932859]
[1751639312560,0.7943,2517.1,2517.0,3.14932859]
[1751639315362,0.7943,2517.1,2517.0,3.94365859]
[1751639315959,0.7943,2517.1,2517.0,0.79433]
[1751639316166,0.79429,2517.2,2517.1,0.79429]
[1751639316362,0.79429,2517.2,2517.1,3.95490109]
[1751639316565,0.79425,2517.3,2517.2,0.79426]
[1751639316760,0.79425,2517.3,2517.2,2.37140609]
[1751639317464,14.56527,2517.7,2517.2,4.00206]
[1751639317661,13.37411,2517.7,2517.6,1.18592216]
[1751639318072,0.79414,2517.6,2517.5,1.58122955]
[1751639318370,0.79414,2517.6,2517.5,2.37537955]
[1751639318670,0.79414,2517.6,2517.5,1.58122955]
[1751639318864,0.79414,2517.6,2517.5,2.37539955]
[1751639319062,0.79412,2517.7,2517.6,0.79414]
[1751639319266,0.79411,2517.8,2517.7,0.79409]
[1751639319467,0.79411,2517.8,2517.7,1.18700926]
[1751639319973,0.79407,2517.8,2517.7,1.58122955]
[1751639320472,2.18447,2517.8,2517.7,1.58122955]
[1751639321067,1.3904,2517.8,2517.5,3.16061109]
[1751639321260,0.79414,2517.6,2517.5,3.16061109]
[1751639321964,0.79417,2517.5,2517.4,3.16061109]
[1751639322165,0.79417,2517.5,2517.2,3.95892706]
[1751639322166,0.79423,2517.3,2517.2,3.95892706]
[1751639324375,0.79423,2517.3,2517.2,7.96098706]
[1751639324575,0.79423,2517.3,2517.2,7.16672706]
[1751639324774,0.79423,2517.3,2517.2,3.95892706]
[1751639325472,0.79426,2517.2,2517.1,0.7351]
[1751639325675,0.79426,2517.2,2517.1,5.49152631]
[1751639325976,0.79426,2517.2,2517.1,1.5294]
[1751639326275,1.9856,2517.3,2516.9,8.74915308]
[1751639326473,0.79432,2517.1,2517.0,0.7943]
[1751639326870,1.9856,2517.3,2517.0,0.7943]
[1751639327375,0.79426,2517.2,2517.1,4.75637415]
[1751639328173,0.79426,2517.3,2517.2,0.79422]
[1751639328371,0.79426,2517.3,2517.2,4.75630415]
[1751639329971,0.79426,2517.3,2517.2,6.11950415]
[1751639330166,0.79426,2517.3,2517.2,9.32730415]
[1751639330376,0.79423,2517.4,2517.3,0.79419]
[1751639331483,1.9853,2517.7,2517.4,0.79416]
[1751639331484,0.79419,2517.5,2517.4,0.79416]
[1751639331873,0.79423,2517.4,2517.3,0.79419]
[1751639332077,0.79423,2517.4,2517.3,4.75627415]
[1751639332276,0.79423,2517.4,2517.3,0.79419]
[1751639332476,1.98538,2517.6,2517.2,7.96542485]
[1751639332682,0.79422,2517.4,2517.3,4.75759485]
[1751639332886,0.79419,2517.5,2517.4,0.7942]
[1751639333182,0.7942,2517.4,2517.3,4.75757485]
[1751639333885,0.7942,2517.4,2517.3,0.79421]
[1751639334186,0.7942,2517.4,2517.3,2.22151]
[1751639334385,0.7942,2517.4,2517.3,6.18561444]
[1751639334582,0.7942,2517.4,2517.3,2.22151]
[1751639334786,0.7942,2517.4,2517.3,6.18627877]
[1751639334985,0.79419,2517.5,2517.4,0.79417]
[1751639335185,0.79419,2517.5,2517.4,4.75875824]
[1751639336078,0.79419,2517.5,2517.4,3.96458824]
[1751639336481,0.7942,2517.4,2517.3,3.96458824]
[1751639336685,0.79423,2517.3,2517.2,3.2078]
[1751639336986,0.79426,2517.2,2517.1,5.54135308]
[1751639337382,0.7943,2517.1,2517.0,3.96638759]
[1751639339294,0.7943,2517.1,2517.0,4.76071759]
[1751639339483,0.7943,2517.1,2517.0,3.96638759]
[1751639340188,0.79433,2517.0,2516.9,5.47306]
[1751639340384,1.9856,2517.3,2516.9,4.6787]
[1751639340585,0.79426,2517.2,2517.1,3.17276998]
[1751639341185,0.79431,2517.1,2517.0,0.7943]
[1751639341587,0.79431,2517.1,2517.0,2.202]
[1751639342786,0.79433,2517.0,2516.9,4.6787]
[1751639343088,0.79439,2516.8,2516.7,3.11297759]
[1751639343292,0.79452,2516.4,2516.3,5.54135308]
[1751639343492,0.79452,2516.4,2516.3,3.17190321]
[1751639344489,0.79458,2516.2,2516.1,3.17190321]
[1751639344690,0.79449,2516.5,2516.1,3.17190321]
[1751639344898,3.2078,2516.9,2516.4,4.00229]
[1751639345196,0.79448,2516.5,2516.4,7.17419321]
[1751639345690,0.79448,2516.5,2516.4,6.37970321]
[1751639345895,0.79452,2516.4,2516.3,3.17190321]
[1751639346096,0.79457,2516.3,2516.2,3.96273256]
[1751639346497,0.79457,2516.3,2516.2,3.16816256]
[1751639346798,0.79457,2516.3,2516.2,3.96274256]
[1751639346990,0.79458,2516.2,2516.1,6.37596256]
[1751639347193,0.79458,2516.2,2516.1,3.16816256]
[1751639347385,0.79461,2516.1,2516.0,3.16816256]
[1751639347591,1.2952,2516.1,2515.8,3.96285256]
[1751639347792,0.79466,2516.0,2515.8,3.16816256]
[1751639348099,1.2952,2516.1,2516.0,0.79464]
[1751639348100,2.08983,2516.1,2516.0,0.79464]
[1751639348286,0.79463,2516.1,2516.0,0.79464]
[1751639348688,0.79471,2515.8,2515.7,7.17068256]
[1751639349089,0.79471,2515.8,2515.7,4.00252]
[1751639349697,0.7947,2515.9,2515.8,0.79468]
[1751639350892,0.79463,2516.1,2516.0,0.79461]
[1751639351091,0.79463,2516.1,2516.0,2.37022608]
[1751639351294,0.79463,2516.1,2516.0,3.16486608]
[1751639351596,0.79463,2516.1,2516.0,2.37022608]
[1751639352400,0.79464,2516.0,2515.9,3.16489608]
[1751639352695,5.90289,2516.3,2515.7,3.2078]
[1751639352696,3.2078,2516.3,2516.1,0.79458]
[1751639352901,4.00238,2516.3,2516.2,2.37365852]
[1751639353195,0.79458,2516.3,2516.2,0.79458]
[1751639353394,0.79451,2516.5,2516.4,0.79449]
[1751639353591,3.2078,2516.7,2516.3,2.91163]
[1751639353592,0.79452,2516.4,2516.3,2.91163]
[1751639353796,0.79455,2516.3,2516.2,3.16816256]
[1751639354099,0.79455,2516.3,2516.2,0.79458]
[1751639354299,0.79455,2516.3,2516.2,3.96274256]
[1751639354501,0.79455,2516.3,2516.2,0.79458]
[1751639354803,0.79464,2516.0,2515.9,3.96282256]
[1751639355099,0.79462,2516.1,2516.0,0.79463]
[1751639355496,0.7946,2516.2,2516.1,0.79458]
[1751639355697,1.4079,2516.5,2516.1,3.2078]
[1751639355895,0.79449,2516.6,2516.5,0.79446]
[1751639356402,0.79449,2516.6,2516.5,3.16229252]
[1751639357500,0.79449,2516.6,2516.5,0.79446]
[1751639357899,0.79448,2516.5,2516.4,0.79451]
[1751639358105,0.79452,2516.4,2516.3,3.96269256]
[1751639358407,2.22354,2516.7,2516.6,0.79445]
[1751639358607,3.9151,2517.0,2516.6,2.368144]
[1751639358803,3.2078,2517.0,2516.9,0.79436]
[1751639359006,1.4291,2517.6,2517.1,1.98574]
[1751639359209,4.00189,2517.8,2517.7,0.79411]
[1751639359500,3.2078,2517.8,2517.5,1.5783115]
[1751639359700,3.2078,2517.8,2517.7,1.18367211]
[1751639359701,4.00187,2517.8,2517.7,1.18367211]
[1751639360004,4.00187,2517.8,2517.7,1.5783115]
[1751639360204,4.00187,2517.8,2517.7,2.3724215]
[1751639360397,4.00187,2517.8,2517.7,1.5783115]
[1751639362110,0.79404,2518.0,2517.8,0.79406]
[1751639362307,0.79404,2518.0,2517.8,1.97744679]
[1751639362507,0.79404,2517.9,2517.8,2.36746725]
[1751639362708,0.79407,2517.8,2517.7,2.36746725]
[1751639363610,1.4174,2518.1,2518.0,0.79401]
[1751639364007,12.426,2518.4,2518.3,0.79392]
[1751639364209,13.21988,2518.4,2518.3,1.97685022]
[1751639364610,12.426,2518.4,2518.3,1.97685022]
[1751639364815,3.2078,2518.5,2518.4,0.79388]
[1751639365009,3.2078,2518.5,2518.4,3.16134725]
[1751639365316,2.0385,2518.8,2518.7,0.79379]
[1751639365511,0.7024,2518.8,2518.7,1.97517329]
[1751639365716,1.49617,2518.8,2518.7,1.18138329]
[1751639365917,0.79379,2518.7,2518.6,1.57517772]
[1751639366221,2.0754,2518.8,2518.4,3.16133725]
[1751639366222,4.05982,2518.8,2518.4,3.16133725]
[1751639366418,0.79379,2518.7,2518.6,1.57415305]
[1751639366718,0.79382,2518.6,2518.5,1.57415305]
[1751639367415,1.373,2518.7,2518.4,1.57415305]
[1751639367416,0.79385,2518.5,2518.4,1.57415305]
[1751639367614,2.16685,2518.5,2518.4,1.57415305]
[1751639368315,1.373,2518.5,2518.3,1.17977325]
[1751639368515,0.79388,2518.4,2518.3,1.17977325]
[1751639369315,0.79392,2518.3,2518.2,1.17977325]
[1751639369513,0.79395,2518.2,2518.1,1.17977325]
[1751639369715,0.79401,2518.0,2517.9,1.17977325]
[1751639370216,0.79404,2517.9,2517.8,1.17977325]
[1751639371218,0.79411,2517.7,2517.6,4.38757325]
[1751639371518,0.79411,2517.7,2517.6,3.2078]
[1751639372018,0.79409,2517.8,2517.7,0.79408]
[1751639372213,4.5453,2518.3,2517.6,5.56539984]
[1751639372415,6.53011,2518.3,2517.8,1.97269732]
[1751639372616,0.79405,2517.9,2517.8,1.97265341]
[1751639373017,0.79405,2517.9,2517.8,0.79406]
[1751639373920,0.79405,2517.9,2517.8,1.9725279]
[1751639374120,0.79404,2518.0,2517.9,0.79402]
[1751639374322,0.79404,2518.0,2517.9,1.97246604]
[1751639377619,4.00172,2518.3,2518.2,0.79395]
[1751639377824,0.79398,2518.2,2518.1,0.79395]
[1751639378427,0.79398,2518.1,2518.0,3.83361643]
[1751639378631,0.79398,2518.1,2518.0,1.57151643]
[1751639378925,0.79398,2518.1,2518.0,1.17883486]
[1751639379121,0.7622,2518.4,2518.0,1.17883486]
[1751639379328,0.79394,2518.3,2518.2,0.79392]
[1751639379523,0.79394,2518.3,2518.0,1.98503]
[1751639379524,0.79392,2518.4,2518.3,0.79389]
[1751639379723,0.79392,2518.4,2518.3,1.97272486]
[1751639380926,0.79392,2518.4,2518.3,1.17883486]
[1751639381229,0.79392,2518.4,2518.3,0.79392]
[1751639381423,0.79392,2518.4,2518.3,1.57151643]
[1751639381725,1.98457,2518.6,2518.2,4.00175]
[1751639381726,0.79392,2518.3,2518.2,4.00175]
[1751639382323,0.79392,2518.3,2518.2,5.57326643]
[1751639382623,0.7939,2518.4,2518.3,0.79389]
[1751639382926,0.79392,2518.3,2518.2,5.57323643]
[1751639383325,0.79392,2518.3,2518.2,4.77931643]
[1751639383522,0.79392,2518.3,2518.2,4.78334809]
[1751639383721,0.79392,2518.3,2518.2,5.57729809]
[1751639384425,0.79392,2518.3,2518.2,3.2078]
[1751639385025,0.79393,2518.3,2518.2,1.57640645]
[1751639385227,0.79395,2518.2,2518.1,2.35759984]
[1751639385425,1.98481,2518.3,2517.9,3.16816256]
[1751639385626,0.79401,2518.0,2517.9,0.79403]
[1751639386725,0.79404,2517.9,2517.8,3.96222256]
[1751639387331,0.79404,2517.9,2517.8,0.79406]
[1751639388935,1.98496,2518.1,2517.7,7.15673471]
[1751639388936,0.79407,2517.8,2517.7,7.95081471]
[1751639390437,0.79407,2517.8,2517.7,7.15673471]
[1751639391538,0.79407,2517.8,2517.6,1.4681]
[1751639391539,0.79411,2517.7,2517.6,0.753]
[1751639393534,0.79411,2517.7,2517.6,1.54714]
[1751639393935,0.79411,2517.7,2517.6,2.95504]
[1751639395738,0.7941,2517.8,2517.7,0.79407]
[1751639396850,0.79411,2517.7,2517.6,1.54714]
[1751639397945,0.79411,2517.7,2517.6,0.753]
[1751639398451,0.79411,2517.7,2517.5,3.94893471]
[1751639398452,0.79414,2517.6,2517.5,3.94893471]
[1751639398648,0.79414,2517.6,2517.5,4.74310471]
[1751639399444,3.96835,2519.1,2517.5,8.94893471]
[1751639399646,0.32177291,2519.3,2518.5,1.18856102]
[1751639399647,1.98441,2518.8,2518.5,1.18856102]
[1751639399846,4.00162,2518.6,2518.5,1.18856102]
[1751639400448,9.00162,2518.6,2518.5,1.18856102]
[1751639400647,10.40392,2518.6,2518.5,1.18856102]
[1751639400852,1.9847,2518.5,2518.2,3.16949605]
[1751639401047,5.1926,2518.3,2517.9,3.94893471]
[1751639401242,0.79404,2517.9,2517.8,3.94893471]
[1751639401441,0.79407,2517.8,2517.7,3.94893471]
[1751639401646,0.79411,2517.7,2517.6,3.94893471]
[1751639401847,4.76901,2517.7,2517.6,3.94893471]
[1751639402052,6.06651,2517.7,2517.6,7.11914009]
[1751639402252,6.06651,2517.7,2517.6,3.17020538]
[1751639402451,0.79417,2517.5,2517.4,3.17020538]
[1751639403149,5.79417,2517.5,2517.4,3.17020538]
[1751639403345,0.7942,2517.4,2517.3,3.17020538]
[1751639403650,0.79426,2517.2,2517.1,3.17020538]
[1751639403850,0.79426,2517.2,2517.1,3.16880258]
[1751639404044,6.98572,2517.2,2516.8,3.16880258]
[1751639404245,3.2078,2516.9,2516.6,3.16880258]
[1751639404452,0.7671,2517.1,2516.7,5.58237856]
[1751639404657,4.00213,2517.0,2516.9,2.37457856]
[1751639404853,4.5053,2517.0,2516.9,2.37446487]
[1751639405053,0.79436,2516.9,2516.8,2.37446487]
[1751639405248,0.79439,2516.8,2516.7,2.37446487]
[1751639405448,0.79442,2516.7,2516.6,2.37446487]
[1751639405648,4.00222,2516.7,2516.6,2.37446487]
[1751639406348,4.00222,2516.7,2516.5,3.16894487]
[1751639407455,0.79445,2516.6,2516.5,2.37446487]
[1751639407653,4.00224,2516.7,2516.5,3.16895487]
[1751639407853,0.79445,2516.6,2516.5,2.37446487]
[1751639408054,2.16515,2516.6,2516.5,2.37446487]
[1751639408550,0.79449,2516.5,2516.4,3.16897487]
[1751639408755,0.79449,2516.5,2516.4,2.37446487]
[1751639409149,2.16518,2516.6,2516.4,2.37446487]
[1751639409357,2.16515,2516.6,2516.5,1.57784028]
[1751639410854,3.63425,2516.6,2516.5,1.57784028]
[1751639411361,0.79449,2516.5,2516.4,1.57784028]
[1751639411562,0.79455,2516.3,2516.2,1.57784028]
[1751639413359,0.79458,2516.2,2516.1,1.57784028]
[1751639413661,0.79461,2516.1,2516.0,3.82076487]
[1751639414363,0.79461,2516.1,2516.0,4.61538487]
[1751639414657,0.79461,2516.1,2516.0,3.82076487]
[1751639414862,0.79461,2516.2,2516.0,4.61539487]
[1751639415163,0.79461,2516.2,2516.1,2.37058018]
[1751639415362,0.79461,2516.2,2516.1,1.57597018]
[1751639417154,0.79461,2516.2,2516.1,2.37058018]
[1751639417360,0.79461,2516.1,2516.0,2.24092]
[1751639417662,0.79461,2516.1,2516.0,1.4463]
[1751639417852,0.79461,2516.1,2516.0,0.7434]
[1751639418361,0.79461,2516.1,2516.0,2.31895351]
[1751639419052,0.79461,2516.1,2516.0,1.57555351]
[1751639419564,0.79461,2516.1,2516.0,2.37019351]
[1751639419859,4.5969,2516.4,2516.0,1.57555351]
[1751639420161,0.79461,2516.1,2516.0,1.57555351]
[1751639421559,0.79464,2516.0,2515.9,1.57555351]
[1751639421955,4.00244,2516.0,2515.9,1.57555351]
[1751639422162,0.79467,2515.9,2515.8,1.57555351]
[1751639422358,0.79471,2515.8,2515.7,1.57555351]
[1751639423263,3.2078,2516.0,2515.6,3.06905351]
[1751639423462,0.79471,2515.8,2515.7,1.57555351]
[1751639423662,0.79471,2515.8,2515.7,2.37029351]
[1751639424556,0.79471,2515.8,2515.7,2.90805351]
[1751639424758,0.79471,2515.8,2515.7,1.57555351]
[1751639425067,0.79471,2515.8,2515.7,2.37029351]
[1751639425367,0.79474,2515.7,2515.6,4.6517351]
[1751639426067,0.79474,2515.7,2515.6,4.6517651]
[1751639426270,0.79473,2515.8,2515.7,0.79472]
[1751639426570,0.79474,2515.7,2515.6,4.6517451]
[1751639426866,0.79474,2515.7,2515.6,3.8569951]
[1751639427265,0.79474,2515.7,2515.6,1.53257]
[1751639427459,0.79474,2515.7,2515.6,3.59427]
[1751639427864,0.79474,2515.7,2515.6,2.29777]
[1751639428070,0.79474,2515.7,2515.6,4.6612651]
[1751639428964,0.79474,2515.7,2515.6,3.8664951]
[1751639429363,0.79474,2515.7,2515.6,1.503]
[1751639429659,0.79474,2515.7,2515.6,3.87252782]
[1751639430168,0.79474,2515.7,2515.6,4.66729782]
[1751639430370,0.79474,2515.7,2515.6,2.29777]
[1751639430568,0.79474,2515.7,2515.6,1.503]
[1751639430765,0.79474,2515.7,2515.6,3.87256345]